fUST/lending_fUST_20250225
["ID","MTS","AMOUNT","RATE_DAILY","PERIOD"]
[354395527,1740469838912,-80247.38424204,0.00065,30]
[354395528,1740469838922,-164346.22,0.00065,120]
[354395529,1740469838933,-647.4,0.00065479,120]
[354395530,1740469838943,-305.182857,0.000657,37]
[354395531,1740469838954,-21769.480074,0.00065743,6]
[354395532,1740469838965,-500.0,0.00065753,120]
[354395533,1740469838976,-500.0,0.00065753,120]
[354395534,1740469838986,-500.49410889,0.00065753,120]
[354395535,1740469838996,-500.0,0.00065753,120]
[354395536,1740469839006,-500.0,0.00065753,120]
[354395537,1740469839016,-500.88694663,0.00065753,120]
[354395538,1740469839026,-501.61167829,0.00065753,120]
[354395539,1740469839037,-500.0,0.00065753,120]
[354395540,1740469839047,-500.91413908,0.00065753,120]
[354395541,1740469839057,-500.0,0.00065753,120]
[354395542,1740469839067,-500.0,0.00065753,120]
[354395543,1740469839078,-503.61220938,0.00065753,120]
[354395544,1740469839088,-500.56047117,0.00065753,120]
[354395545,1740469839098,-502.0394739,0.00065753,120]
[354395546,1740469839108,-501.91613792,0.00065753,120]
[354395547,1740469839119,-500.0,0.00065753,120]
[354395548,1740469839129,-500.0,0.00065753,120]
[354395549,1740469839139,-503.95751416,0.00065753,120]
[354395550,1740469839149,-250.0,0.00065753,120]
[354395551,1740469839159,-500.0,0.00065753,120]
[354395552,1740469839169,-500.0,0.00065753,120]
[354395553,1740469839179,-501.9855279,0.00065753,120]
[354395554,1740469839190,-504.22697623,0.00065753,120]
[354395555,1740469839201,-500.0,0.00065753,120]
[354395556,1740469839212,-510.19,0.00065753,120]
[354395557,1740469839222,-500.0,0.00065753,120]
[354395558,1740469839233,-500.0,0.00065753,120]
[354395559,1740469839245,-459.31998981,0.00065753,120]
[354395560,1740469839256,-509.14603337,0.00065753,120]
[354395561,1740469839267,-500.0,0.00065753,120]
[354395562,1740469839279,-500.0,0.00065753,120]
[354395563,1740469839290,-512.98061299,0.00065753,120]
[354395564,1740469839301,-500.0,0.00065753,120]
[354395565,1740469839312,-1000.0,0.00065753,10]
[354395566,1740469839324,-500.0,0.00065753,120]
[354395567,1740469839335,-233.70923565,0.00065753,120]
[354395568,1740469839346,-631.7537015,0.00065753,120]
[354395569,1740469839357,-500.0,0.00065753,120]
[354395570,1740469839368,-500.0,0.00065753,120]
[354395571,1740469839379,-500.0,0.00065753,120]
[354395572,1740469839389,-500.0,0.00065753,120]
[354395573,1740469839404,-500.0,0.00065753,120]
[354395574,1740469839416,-500.0,0.00065753,120]
[354395575,1740469839431,-403.19,0.00065753,120]
[354395576,1740469839444,-500.0,0.00065753,120]
[354395577,1740469839455,-500.0,0.00065753,120]
[354395578,1740469839468,-500.0,0.00065753,120]
[354395579,1740469839480,-501.55829666,0.00065753,120]
[354395580,1740469839492,-500.06,0.00065753,120]
[354395581,1740469839503,-500.0,0.00065753,120]
[354395582,1740469839515,-500.0,0.00065753,120]
[354395583,1740469839527,-500.0,0.00065753,120]
[354395584,1740469839538,-500.0,0.00065753,120]
[354395585,1740469839550,-500.0,0.00065753,120]
[354395586,1740469839561,-500.0,0.00065753,120]
[354395587,1740469839572,-500.0,0.00065753,120]
[354395588,1740469839582,-453.27760459,0.00065753,120]
[354395589,1740469839592,-500.0,0.00065753,120]
[354395590,1740469839603,-489.82551627,0.00065753,120]
[354395591,1740469839613,-504.14601908,0.00065753,120]
[354395592,1740469839622,-504.11283741,0.00065753,120]
[354395593,1740469839632,-500.51449109,0.00065753,120]
[354395595,1740469839643,-500.0,0.00065753,120]
[354395597,1740469839653,-502.69990503,0.00065753,120]
[354395598,1740469839662,-500.0,0.00065753,30]
[354395599,1740469839672,-1008.28792213,0.00065753,120]
[354395600,1740469839681,-500.0,0.00065753,120]
[354395601,1740469839691,-500.0,0.00065753,120]
[354395602,1740469839702,-500.0,0.00065753,120]
[354395603,1740469839712,-1000.0,0.00065753,20]
[354395604,1740469839722,-500.0,0.00065753,120]
[354395605,1740469839733,-500.72243863,0.00065753,120]
[354395606,1740469839743,-500.0,0.00065753,120]
[354395607,1740469839755,-500.0,0.00065753,120]
[354395608,1740469839765,-500.0,0.00065753,120]
[354395609,1740469839777,-504.71884495,0.00065753,120]
[354395610,1740469839787,-500.37931707,0.00065753,120]
[354395611,1740469839798,-500.0,0.00065753,120]
[354395612,1740469839807,-500.0,0.00065753,120]
[354395613,1740469839817,-500.0,0.00065753,120]
[354395614,1740469839827,-500.0,0.00065753,120]
[354395615,1740469839837,-500.0,0.00065753,120]
[354395616,1740469839847,-500.0,0.00065753,120]
[354395617,1740469839856,-500.0,0.00065753,120]
[354395618,1740469839866,-500.78618615,0.00065753,30]
[354395619,1740469839875,-501.57524441,0.00065753,120]
[354395620,1740469839885,-504.85927931,0.00065753,120]
[354395621,1740469839894,-500.0,0.00065753,120]
[354395622,1740469839904,-500.0,0.00065753,120]
[354395623,1740469839914,-500.0,0.00065753,120]
[354395624,1740469839924,-502.05442398,0.00065753,120]
[354395628,1740469839936,-500.0,0.00065753,120]
[354395629,1740469839946,-500.0,0.00065753,2]
[354395631,1740469839957,-501.74779159,0.00065753,120]
[354395632,1740469839969,-500.0,0.00065753,120]
[354395633,1740469839980,-500.0,0.00065753,120]
[354395634,1740469839991,-152.73162992,0.00065753,120]
[354395635,1740469840002,-500.0,0.00065753,120]
[354395636,1740469840013,-500.0,0.00065753,120]
[354395637,1740469840023,-500.98714355,0.00065753,120]
[354395638,1740469840034,-500.0,0.00065753,120]
[354395639,1740469840045,-504.07888623,0.00065753,120]
[354395640,1740469840056,-500.0,0.00065753,120]
[354395641,1740469840066,-502.31336497,0.00065753,120]
[354395642,1740469840076,-500.0,0.00065753,120]
[354395643,1740469840086,-500.0,0.00065753,120]
[354395644,1740469840097,-392.99,0.00065753,120]
[354395645,1740469840107,-500.0,0.00065753,3]
[354395646,1740469840117,-500.97983775,0.00065753,120]
[354395647,1740469840127,-500.0,0.00065753,120]
[354395648,1740469840138,-500.0,0.00065753,120]
[354395649,1740469840148,-500.0,0.00065753,30]
[354395650,1740469840158,-500.0,0.00065753,120]
[354395651,1740469840167,-500.0,0.00065753,120]
[354395652,1740469840177,-500.0,0.00065753,120]
[354395653,1740469840187,-500.0,0.00065753,120]
[354395654,1740469840197,-500.0,0.00065753,120]
[354395655,1740469840206,-500.0,0.00065753,120]
[354395656,1740469840216,-500.0,0.00065753,120]
[354395657,1740469840226,-500.0,0.00065753,120]
[354395658,1740469840236,-501.12964478,0.00065753,120]
[354395659,1740469840246,-500.0,0.00065753,120]
[354395661,1740469840255,-500.0,0.00065753,120]
[354395663,1740469840265,-500.70415903,0.00065753,120]
[354395665,1740469840275,-500.0,0.00065753,120]
[354395667,1740469840285,-509.68746784,0.00065753,120]
[354395669,1740469840295,-500.0,0.00065753,120]
[354395671,1740469840305,-500.0,0.00065753,120]
[354395673,1740469840315,-500.0,0.00065753,120]
[354395675,1740469840324,-622.80668311,0.00065753,120]
[354395677,1740469840334,-501.46367698,0.00065753,120]
[354395679,1740469840344,-1262.5,0.00065753,120]
[354395681,1740469840354,-500.0,0.00065753,120]
[354395683,1740469840364,-504.01385868,0.00065753,120]
[354395685,1740469840373,-500.0,0.00065753,120]
[354395687,1740469840383,-500.0,0.00065753,120]
[354395689,1740469840394,-500.0,0.00065753,120]
[354395691,1740469840404,-500.79722533,0.00065753,120]
[354395693,1740469840414,-500.0,0.00065753,120]
[354395695,1740469840426,-500.0,0.00065753,120]
[354395697,1740469840435,-500.0,0.00065753,120]
[354395699,1740469840445,-500.0,0.00065753,120]
[354395700,1740469840467,-501.71620983,0.00065753,120]
[354395702,1740469840478,-501.26340665,0.00065753,120]
[354395704,1740469840488,-500.0,0.00065753,120]
[354395706,1740469840499,-500.0,0.00065753,120]
[354395708,1740469840509,-503.78486956,0.00065753,120]
[354395710,1740469840518,-500.0,0.00065753,120]
[354395712,1740469840528,-500.0,0.00065753,120]
[354395714,1740469840537,-500.0,0.00065753,120]
[354395715,1740469840548,-500.0,0.00065753,120]
[354395717,1740469840558,-500.0,0.00065753,120]
[354395719,1740469840569,-500.66590864,0.00065753,120]
[354395721,1740469840579,-500.0,0.00065753,120]
[354395723,1740469840589,-500.0,0.00065753,120]
[354395724,1740469840600,-500.0,0.00065753,120]
[354395726,1740469840610,-502.23662351,0.00065753,120]
[354395728,1740469840620,-500.0,0.00065753,120]
[354395729,1740469840630,-500.0,0.00065753,120]
[354395730,1740469840641,-500.0,0.00065753,120]
[354395732,1740469840651,-500.0,0.00065753,120]
[354395734,1740469840660,-500.0,0.00065753,120]
[354395736,1740469840670,-500.0,0.00065753,120]
[354395737,1740469840681,-612.16,0.00065753,120]
[354395739,1740469840691,-500.0,0.00065753,120]
[354395741,1740469840702,-502.26761366,0.00065753,120]
[354395743,1740469840712,-500.83430823,0.00065753,120]
[354395745,1740469840722,-500.0,0.00065753,120]
[354395746,1740469840732,-501.45461369,0.00065753,120]
[354395747,1740469840741,-500.0,0.00065753,120]
[354395748,1740469840751,-500.0,0.00065753,120]
[354395749,1740469840772,-500.0,0.00065753,120]
[354395750,1740469840782,-500.0,0.00065753,120]
[354395751,1740469840793,-500.0,0.00065753,7]
[354395752,1740469840803,-1262.96,0.00065753,120]
[354395753,1740469840813,-503.28248036,0.00065753,120]
[354395754,1740469840824,-500.0,0.00065753,120]
[354395755,1740469840834,-503.47574561,0.00065753,120]
[354395757,1740469840845,-500.0,0.00065753,120]
[354395759,1740469840856,-500.0,0.00065753,120]
[354395760,1740469840867,-500.75229359,0.00065753,120]
[354395761,1740469840877,-500.37473037,0.00065753,120]
[354395762,1740469840887,-500.0,0.00065753,120]
[354395763,1740469840898,-500.0,0.00065753,120]
[354395764,1740469840909,-500.0,0.00065753,120]
[354395765,1740469840920,-500.0,0.00065753,120]
[354395766,1740469840930,-500.0,0.00065753,120]
[354395767,1740469840940,-500.0,0.00065753,120]
[354395768,1740469840951,-500.0,0.00065753,120]
[354395769,1740469840961,-500.0,0.00065753,120]
[354395770,1740469840971,-500.0,0.00065753,120]
[354395771,1740469840980,-500.0,0.00065753,120]
[354395772,1740469840990,-500.0,0.00065753,120]
[354395773,1740469841001,-1400.64,0.00065753,120]
[354395774,1740469841011,-500.0,0.00065753,120]
[354395775,1740469841021,-500.0,0.00065753,120]
[354395776,1740469841031,-501.98764971,0.00065753,120]
[354395777,1740469841041,-500.0,0.00065753,120]
[354395778,1740469841051,-500.0,0.00065753,120]
[354395779,1740469841062,-503.28001754,0.00065753,120]
[354395780,1740469841072,-500.0,0.00065753,120]
[354395781,1740469841082,-500.0,0.00065753,120]
[354395782,1740469841093,-500.0,0.00065753,120]
[354395783,1740469841103,-500.0,0.00065753,120]
[354395784,1740469841114,-10460.21,0.00065753,7]
[354395785,1740469841124,-500.0,0.00065753,120]
[354395786,1740469841134,-500.0,0.00065753,120]
[354395787,1740469841145,-500.0,0.00065753,120]
[354395788,1740469841155,-723.73,0.00065753,120]
[354395789,1740469841166,-500.0,0.00065753,120]
[354395790,1740469841176,-500.0,0.00065753,21]
[354395791,1740469841186,-500.0,0.00065753,120]
[354395793,1740469841319,-500.0,0.00065753,120]
[354395794,1740469841329,-500.0,0.00065753,120]
[354395795,1740469841339,-500.0,0.00065753,120]
[354395796,1740469841349,-500.0,0.00065753,120]
[354395797,1740469841359,-500.0,0.00065753,120]
[354395798,1740469841369,-501.40371633,0.00065753,120]
[354395799,1740469841379,-500.0,0.00065753,120]
[354395800,1740469841388,-6269.2,0.00065753,120]
[354395801,1740469841402,-500.0,0.00065753,120]
[354395802,1740469841411,-500.0,0.00065753,120]
[354395803,1740469841421,-500.0,0.00065753,120]
[354395804,1740469841431,-500.0,0.00065753,120]
[354395805,1740469841444,-500.0,0.00065753,120]
[354395806,1740469841454,-500.0,0.00065753,120]
[354395807,1740469841464,-500.78392675,0.00065753,120]
[354395808,1740469841473,-502.82338771,0.00065753,120]
[354395809,1740469841484,-429.73195458,0.00065753,120]
[354395810,1740469841494,-500.0,0.00065753,120]
[354395811,1740469841504,-500.0,0.00065753,120]
[354395812,1740469841515,-504.25076333,0.00065753,120]
[354395813,1740469841525,-503.42185983,0.00065753,120]
[354395814,1740469841535,-922.43,0.00065753,120]
[354395815,1740469841546,-500.49095676,0.00065753,120]
[354395816,1740469841556,-500.0,0.00065753,120]
[354395817,1740469841566,-500.0,0.00065753,120]
[354395818,1740469841577,-500.0,0.00065753,120]
[354395819,1740469841587,-501.57288007,0.00065753,120]
[354395820,1740469841597,-469.46010992,0.00065753,120]
[354395821,1740469841610,-501.33927578,0.00065753,120]
[354395822,1740469841620,-500.0,0.00065753,120]
[354395823,1740469841630,-500.0,0.00065753,120]
[354395824,1740469841640,-500.0,0.00065753,120]
[354395825,1740469841651,-500.0,0.00065753,120]
[354395826,1740469841662,-500.0,0.00065753,120]
[354395827,1740469841673,-500.41839505,0.00065753,120]
[354395828,1740469841683,-500.0,0.00065753,120]
[354395829,1740469841694,-500.0,0.00065753,120]
[354395830,1740469841703,-20663.98,0.00065753,120]
[354395831,1740469841714,-500.0,0.00065753,120]
[354395832,1740469841724,-500.0,0.00065753,120]
[354395833,1740469841734,-505.46102526,0.00065753,120]
[354395834,1740469841745,-500.38861504,0.00065773,15]
[354395835,1740469841756,-500.0,0.00065773,15]
[354395836,1740469841766,-500.0,0.00065773,10]
[354395837,1740469841776,-205.09072233,0.00065773,15]
[354395838,1740469841786,-500.0,0.00065773,12]
[354395839,1740469841798,-200.21804356,0.00065788,15]
[354395840,1740469841810,-500.0,0.00065788,15]
[354395841,1740469841821,-500.0,0.00065788,15]
[354395842,1740469841832,-500.0,0.00065788,15]
[354395843,1740469841842,-502.51022621,0.00065839,7]
[354395844,1740469841853,-592.75987409,0.00065849,2]
[354395845,1740469841864,-422.53006001,0.00065927,120]
[354395846,1740469841875,-422.53006001,0.00065927,120]
[354395847,1740469841886,-422.53006001,0.00065927,120]
[354395848,1740469841896,-422.53006001,0.00065927,120]
[354395849,1740469841906,-422.53006001,0.00065927,120]
[354395850,1740469841916,-422.53006001,0.00065927,120]
[354395851,1740469841926,-422.53006001,0.00065927,120]
[354395852,1740469841936,-422.53006001,0.00065927,120]
[354395853,1740469841946,-422.53006001,0.00065927,120]
[354395854,1740469841957,-422.53006001,0.00065927,120]
[354395855,1740469841967,-422.53006001,0.00065927,120]
[354395856,1740469841976,-422.53006001,0.00065927,120]
[354395857,1740469841986,-422.53006001,0.00065927,120]
[354395858,1740469841996,-422.53006001,0.00065927,120]
[354395859,1740469842006,-422.53006001,0.00065927,120]
[354395860,1740469842016,-422.53006001,0.00065927,120]
[354395861,1740469842025,-422.53006001,0.00065927,120]
[354395862,1740469842035,-422.53006001,0.00065927,120]
[354395863,1740469842045,-422.53006001,0.00065927,120]
[354395864,1740469842055,-422.53,0.00065927,120]
[354395865,1740469842065,-14512.986716,0.00066017,6]
[354395866,1740469842075,-500.0,0.00066027,120]
[354395867,1740469842085,-323.1334951,0.00066027,120]
[354395868,1740469842094,-536.25746006,0.00066027,120]
[354395869,1740469842105,-527.82519208,0.00066027,120]
[354395870,1740469842115,-500.0,0.00066027,120]
[354395871,1740469842126,-510.19,0.00066027,120]
[354395872,1740469842136,-500.0,0.00066027,120]
[354395873,1740469842146,-506.1836146,0.00066027,120]
[354395874,1740469842156,-500.0,0.00066027,120]
[354395875,1740469842166,-500.0,0.00066027,120]
[354395876,1740469842177,-163.52740041,0.00066027,10]
[354395877,1740469842187,-500.0,0.00066027,120]
[354395878,1740469842198,-500.0,0.00066027,120]
[354395879,1740469842209,-500.0,0.00066027,120]
[354395880,1740469842220,-500.0,0.00066027,120]
[354395881,1740469842231,-1000.0,0.00066027,20]
[354395882,1740469842243,-500.0,0.00066027,120]
[354395883,1740469842254,-500.0,0.00066027,120]
[354395884,1740469842265,-500.0,0.00066027,120]
[354395885,1740469842276,-500.0,0.00066027,120]
[354395886,1740469842287,-580.0,0.00066027,120]
[354395887,1740469842299,-641.24803688,0.00066027,120]
[354395888,1740469842310,-500.0,0.00066027,120]
[354395889,1740469842321,-500.0,0.00066027,120]
[354395890,1740469842332,-546.71,0.00066027,120]
[354395891,1740469842344,-500.0,0.00066027,120]
[354395892,1740469842355,-500.0,0.00066027,3]
[354395893,1740469842366,-500.0,0.00066027,120]
[354395894,1740469842377,-500.0,0.00066027,120]
[354395895,1740469842389,-500.0,0.00066027,120]
[354395896,1740469842406,-533.15984501,0.00066027,120]
[354395897,1740469842418,-500.0,0.00066027,120]
[354395899,1740469842429,-500.0,0.00066027,120]
[354395902,1740469842441,-500.0,0.00066027,120]
[354395906,1740469842452,-500.0,0.00066027,120]
[354395908,1740469842463,-500.0,0.00066027,120]
[354395911,1740469842475,-1262.5,0.00066027,120]
[354395914,1740469842486,-500.0,0.00066027,120]
[354395916,1740469842497,-500.0,0.00066027,120]
[354395919,1740469842510,-500.0,0.00066027,120]
[354395922,1740469842520,-500.0,0.00066027,120]
[354395924,1740469842531,-500.0,0.00066027,120]
[354395925,1740469842543,-500.0,0.00066027,120]
[354395926,1740469842553,-612.16,0.00066027,120]
[354395927,1740469842565,-440.18140888,0.00066027,120]
[354395928,1740469842575,-500.0,0.00066027,120]
[354395929,1740469842586,-500.0,0.00066027,120]
[354395930,1740469842597,-500.0,0.00066027,120]
[354395931,1740469842609,-500.0,0.00066027,7]
[354395932,1740469842619,-1262.96,0.00066027,120]
[354395933,1740469842629,-609.24734086,0.00066027,120]
[354395934,1740469842639,-500.0,0.00066027,120]
[354395935,1740469842650,-499.77933107,0.00066027,120]
[354395936,1740469842661,-500.0,0.00066027,120]
[354395937,1740469842672,-500.0,0.00066027,120]
[354395938,1740469842682,-500.0,0.00066027,120]
[354395939,1740469842691,-292.61,0.00066027,120]
[354395940,1740469842701,-500.0,0.00066027,120]
[354395941,1740469842711,-500.0,0.00066027,120]
[354395942,1740469842722,-1400.64,0.00066027,120]
[354395944,1740469842731,-500.0,0.00066027,120]
[354395946,1740469842741,-500.0,0.00066027,120]
[354395948,1740469842751,-500.0,0.00066027,120]
[354395949,1740469842761,-500.0,0.00066027,120]
[354395951,1740469842771,-500.0,0.00066027,120]
[354395952,1740469842782,-10460.21,0.00066027,7]
[354395953,1740469842791,-500.0,0.00066027,120]
[354395954,1740469842801,-500.0,0.00066027,120]
[354395955,1740469842811,-723.73,0.00066027,120]
[354395956,1740469842820,-500.0,0.00066027,120]
[354395957,1740469842830,-500.0,0.00066027,120]
[354395958,1740469842839,-500.0,0.00066027,120]
[354395959,1740469842849,-500.0,0.00066027,120]
[354395960,1740469842858,-444.54335897,0.00066027,120]
[354395961,1740469842868,-6269.2,0.00066027,120]
[354395962,1740469842878,-500.0,0.00066027,120]
[354395963,1740469842887,-500.0,0.00066027,120]
[354395964,1740469842897,-500.0,0.00066027,120]
[354395965,1740469842907,-500.0,0.00066027,120]
[354395966,1740469842917,-500.0,0.00066027,120]
[354395967,1740469842930,-922.43,0.00066027,120]
[354395968,1740469842949,-500.0,0.00066027,120]
[354395969,1740469842959,-500.65690588,0.00066027,120]
[354395970,1740469842969,-506.71325543,0.00066027,120]
[354395971,1740469842979,-500.0,0.00066027,120]
[354395972,1740469842991,-500.0,0.00066027,120]
[354395973,1740469843000,-500.0,0.00066027,120]
[354395974,1740469843010,-500.0,0.00066027,120]
[354395975,1740469843019,-473.83060089,0.00066027,120]
[354395976,1740469843030,-20663.98,0.00066027,120]
[354395977,1740469843040,-500.0,0.00066027,120]
[354395978,1740469843049,-500.0,0.00066027,120]
[354395979,1740469843059,-7256.49335801,0.00066291,6]
[354395980,1740469843069,-500.0,0.00066301,120]
[354395981,1740469843079,-510.19,0.00066301,120]
[354395982,1740469843089,-500.0,0.00066301,120]
[354395983,1740469843099,-500.0,0.00066301,120]
[354395984,1740469843109,-500.0,0.00066301,120]
[354395985,1740469843119,-500.0,0.00066301,120]
[354395986,1740469843129,-500.0,0.00066301,120]
[354395987,1740469843138,-721.54990766,0.00066301,20]
[354395988,1740469843148,-500.0,0.00066301,120]
[354395989,1740469843158,-500.0,0.00066301,120]
[354395990,1740469843168,-500.0,0.00066301,120]
[354395991,1740469843178,-500.0,0.00066301,120]
[354395992,1740469843188,-500.0,0.00066301,120]
[354395993,1740469843198,-500.0,0.00066301,120]
[354395994,1740469843207,-500.0,0.00066301,120]
[354395995,1740469843218,-500.0,0.00066301,3]
[354395996,1740469843227,-500.0,0.00066301,120]
[354395997,1740469843237,-500.0,0.00066301,120]
[354395998,1740469843247,-500.0,0.00066301,120]
[354395999,1740469843257,-1262.5,0.00066301,120]
[354396000,1740469843267,-513.20556023,0.00066301,120]
[354396001,1740469843277,-500.0,0.00066301,120]
[354396002,1740469843287,-612.16,0.00066301,120]
[354396003,1740469843296,-500.0,0.00066301,120]
[354396004,1740469843307,-500.0,0.00066301,120]
[354396005,1740469843317,-500.0,0.00066301,7]
[354396006,1740469843326,-1262.96,0.00066301,120]
[354396007,1740469843336,-500.0,0.00066301,120]
[354396008,1740469843346,-500.0,0.00066301,120]
[354396009,1740469843356,-1400.64,0.00066301,120]
[354396010,1740469843367,-500.0,0.00066301,120]
[354396011,1740469843376,-500.0,0.00066301,120]
[354396012,1740469843386,-500.0,0.00066301,120]
[354396013,1740469843398,-500.00255731,0.00066301,120]
[354396014,1740469843407,-10460.21,0.00066301,7]
[354396015,1740469843417,-500.0,0.00066301,120]
[354396016,1740469843428,-500.0,0.00066301,120]
[354396017,1740469843438,-723.73,0.00066301,120]
[354396018,1740469843448,-500.0,0.00066301,120]
[354396019,1740469843458,-500.0,0.00066301,120]
[354396020,1740469843468,-500.0,0.00066301,120]
[354396021,1740469843478,-500.0,0.00066301,120]
[354396022,1740469843488,-6269.2,0.00066301,120]
[354396023,1740469843499,-500.0,0.00066301,120]
[354396024,1740469843510,-503.20686269,0.00066301,120]
[354396025,1740469843520,-500.0,0.00066301,120]
[354396026,1740469843531,-500.0,0.00066301,120]
[354396027,1740469843541,-500.0,0.00066301,120]
[354396028,1740469843552,-922.43,0.00066301,120]
[354396029,1740469843564,-500.0,0.00066301,120]
[354396030,1740469843574,-550.0,0.00066301,120]
[354396031,1740469843584,-635.03976938,0.00066301,120]
[354396032,1740469843596,-20663.98,0.00066301,120]
[354396033,1740469843606,-504.07792829,0.00066301,120]
[354396034,1740469843617,-1000.0,0.00066321,15]
[354396035,1740469843626,-520.62557147,0.00066321,10]
[354396036,1740469843636,-559.7767988,0.00066321,12]
[354396037,1740469843646,-500.09388472,0.00066336,15]
[354396038,1740469843655,-507.30543623,0.00066336,15]
[354396039,1740469843665,-500.0,0.00066381,15]
[354396040,1740469843675,-500.19002515,0.00066381,5]
[354396041,1740469843685,-7256.49335801,0.00066565,6]
[354396042,1740469843695,-500.0,0.00066575,120]
[354396043,1740469843705,-510.19,0.00066575,120]
[354396044,1740469843715,-500.0,0.00066575,120]
[354396045,1740469843725,-500.0,0.00066575,120]
[354396046,1740469843735,-500.0,0.00066575,120]
[354396047,1740469843745,-500.0,0.00066575,120]
[354396048,1740469843754,-266.16629407,0.00066575,120]
[354396049,1740469843764,-500.0,0.00066575,120]
[354396050,1740469843774,-500.0,0.00066575,120]
[354396051,1740469843783,-500.0,0.00066575,120]
[354396052,1740469843794,-501.48233923,0.00066575,120]
[354396053,1740469843803,-166.77085547,0.00066575,120]
[354396054,1740469843903,-500.0,0.00066575,120]
[354396055,1740469843914,-500.0,0.00066575,120]
[354396056,1740469843925,-500.0,0.00066575,3]
[354396057,1740469843934,-500.0,0.00066575,120]
[354396058,1740469843944,-500.0,0.00066575,120]
[354396059,1740469843955,-500.0,0.00066575,120]
[354396060,1740469843965,-1262.5,0.00066575,120]
[354396061,1740469843975,-500.0,0.00066575,120]
[354396062,1740469843986,-612.16,0.00066575,120]
[354396063,1740469843996,-500.0,0.00066575,120]
[354396064,1740469844007,-500.0,0.00066575,120]
[354396065,1740469844017,-195.04,0.00066575,7]
[354396066,1740469844027,-1262.96,0.00066575,120]
[354396067,1740469844037,-472.97,0.00066575,120]
[354396068,1740469844047,-500.0,0.00066575,120]
[354396069,1740469844058,-1400.64,0.00066575,120]
[354396070,1740469844068,-500.0,0.00066575,120]
[354396071,1740469844079,-500.0,0.00066575,120]
[354396072,1740469844090,-10460.21,0.00066575,7]
[354396073,1740469844100,-500.0,0.00066575,120]
[354396074,1740469844110,-449.16600706,0.00066575,120]
[354396075,1740469844120,-723.73,0.00066575,120]
[354396076,1740469844130,-500.0,0.00066575,120]
[354396077,1740469844140,-500.0,0.00066575,120]
[354396078,1740469844150,-500.0,0.00066575,120]
[354396079,1740469844160,-500.0,0.00066575,120]
[354396080,1740469844170,-6269.2,0.00066575,120]
[354396081,1740469844180,-500.0,0.00066575,120]
[354396082,1740469844190,-500.0,0.00066575,120]
[354396083,1740469844201,-500.0,0.00066575,120]
[354396084,1740469844211,-922.43,0.00066575,120]
[354396085,1740469844221,-500.0,0.00066575,120]
[354396086,1740469844231,-20663.98,0.00066575,120]
[354396087,1740469844241,-503.64714928,0.00066579,15]
[354396088,1740469844250,-500.65570921,0.00066604,15]
[354396089,1740469844260,-2036.08927294,0.00066667,120]
[354396090,1740469844270,-253.13847252,0.00066696,10]
[354396091,1740469844280,-14512.986716,0.00066839,6]
[354396092,1740469844291,-500.0,0.00066849,120]
[354396093,1740469844301,-510.19,0.00066849,120]
[354396094,1740469844311,-500.0,0.00066849,120]
[354396095,1740469844322,-500.0,0.00066849,120]
[354396096,1740469844332,-500.0,0.00066849,120]